bitfinex-derivatives/quotes_SOLF0:USTF0_20250106
["timestamp","ask_amount","ask_price","bid_price","bid_amount"]
[1736137830309,7.22531188,215.95,215.94,2.3162]
[1736137832711,7.22531188,215.95,215.87,4.1196]
[1736137832911,7.22531188,215.92,215.87,4.1196]
[1736137833512,7.22531188,215.92,215.91,2.3165]
[1736137834215,7.22531188,215.92,215.89,2.3167]
[1736137834515,7.22531188,215.9,215.89,2.3167]
[1736137838321,7.22531188,215.92,215.9,2.3166]
[1736137841322,2.3162,215.94,215.9,2.3166]
[1736137841524,7.22531188,215.92,215.9,2.3166]
[1736137841724,128.56552449,215.97,215.88,7.22531188]
[1736137842023,7.22531188,215.95,215.88,7.22531188]
[1736137842322,7.22531188,215.95,215.9,7.22531188]
[1736137843521,7.22531188,215.95,215.93,2.3163]
[1736137848022,160.70690561,215.99,215.89,2.6]
[1736137848214,7.22531188,215.96,215.89,9.82531188]
[1736137848416,7.22531188,215.94,215.89,2.6]
[1736137848614,7.22531188,215.92,215.91,2.3164]
[1736137848815,7.22531188,215.92,215.86,1.4661]
[1736137849013,7.22531188,215.9,215.86,1.4661]
[1736137849216,7.22531188,215.9,215.85,1.4497]
[1736137850523,7.22531188,215.9,215.87,2.3169]
[1736137851424,7.22531188,215.88,215.82,2.3174]
[1736137851625,7.22531188,215.86,215.8,7.22531188]
[1736137852724,7.22531188,215.86,215.83,2.3174]
[1736137859627,7.22531188,215.87,215.85,2.3171]
[1736137860924,7.22531188,215.87,215.83,2.3173]
[1736137861129,7.22531188,215.85,215.83,2.3173]
[1736137861329,7.22531188,215.87,215.81,7.22531188]
[1736137862024,2.3166,215.9,215.81,7.22531188]
[1736137862232,4.9165,215.92,215.83,7.22531188]
[1736137862427,7.22531188,215.89,215.83,7.22531188]
[1736137864432,7.22531188,215.91,215.85,7.22531188]
[1736137864733,7.22531188,215.93,215.87,7.22531188]
[1736137865930,2.3159,215.98,215.93,2.3163]
[1736137866125,130.15468412,215.99,215.93,2.3163]
[1736137866333,7.22531188,215.96,215.93,2.3163]
[1736137866529,7.22531188,215.97,215.95,2.3161]
[1736137867327,2.3161,215.95,215.9,2.3166]
[1736137867536,7.22531188,215.92,215.88,2.6]
[1736137868434,7.22531188,215.92,215.9,2.3166]
[1736137868836,2.6,215.99,215.9,2.3166]
[1736137868837,7.22531188,215.94,215.9,2.3166]
[1736137870037,7.22531188,215.94,215.87,1.4017]
[1736137870237,7.22531188,215.92,215.89,2.3167]
[1736137870831,7.22531188,215.9,215.87,1.4017]
[1736137871034,7.22531188,215.9,215.88,2.3169]
[1736137871339,7.22531188,215.9,215.84,2.6]
[1736137871529,7.22531188,215.87,215.85,2.3172]
[1736137871734,7.22531188,215.87,215.84,2.6]
[1736137872136,7.22531188,215.87,215.84,4.9173]
[1736137874844,7.22531188,215.85,215.84,4.9173]
[1736137876949,7.22531188,215.85,215.79,4.4811]
[1736137877243,7.22531188,215.83,215.8,2.6]
[1736137877447,7.22531188,215.83,215.79,4.4811]
[1736137877448,7.22531188,215.83,215.79,7.0811]
[1736137878444,7.22531188,215.83,215.81,2.3176]
[1736137879044,7.22531188,215.83,215.8,2.3177]
[1736137879246,7.22531188,215.81,215.8,2.3177]
[1736137880254,7.22531188,215.81,215.77,2.6]
[1736137880557,7.22531188,215.81,215.78,2.3178]
[1736137881457,7.22531188,215.79,215.78,2.3178]
[1736137881750,7.22531188,215.79,215.77,2.318]
[1736137882552,7.22531188,215.79,215.78,2.3179]
[1736137883949,7.22531188,215.79,215.76,2.318]
[1736137884258,7.22531188,215.77,215.76,2.318]
[1736137887056,7.22531188,215.79,215.73,2.6]
[1736137887251,131.60438412,215.88,215.73,2.6]
[1736137887453,7.22531188,215.79,215.73,2.6]
[1736137888456,7.22531188,215.79,215.77,2.3179]
[1736137888757,7.22531188,215.79,215.73,2.6]
[1736137889355,7.22531188,215.79,215.74,2.3183]
[1736137889557,7.22531188,215.79,215.73,2.6]
[1736137889859,7.22531188,215.79,215.78,2.3179]
[1736137890258,2.6,215.86,215.73,9.82531188]
[1736137890556,7.22531188,215.81,215.73,9.82531188]
[1736137890955,7.22531188,215.81,215.75,2.3182]
[1736137891260,7.22531188,215.81,215.73,9.82531188]
[1736137892960,7.22531188,215.79,215.73,9.82531188]
[1736137893560,7.22531188,215.75,215.65,4.4856]
[1736137893861,7.22531188,215.7,215.65,2.9661]
[1736137894263,7.22531188,215.7,215.66,2.3191]
[1736137894561,7.22531188,215.7,215.65,2.9661]
[1736137894765,6.9217,215.79,215.67,7.22531188]
[1736137894967,7.22531188,215.75,215.73,2.3185]
[1736137896165,7.22531188,215.75,215.7,2.6]
[1736137896467,128.74888412,215.84,215.7,9.82531188]
[1736137896468,2.6,215.83,215.7,9.82531188]
[1736137896663,7.22531188,215.77,215.72,7.22531188]
[1736137896965,7.22531188,215.77,215.76,2.3182]
[1736137897160,7.22531188,215.77,215.72,7.22531188]
[1736137897359,7.22531188,215.77,215.7,2.6]
[1736137897360,7.22531188,215.75,215.73,2.3185]
[1736137898766,7.22531188,215.75,215.56,4.4565]
[1736137898957,2.6,215.78,215.57,2.6]
[1736137898958,7.22531188,215.7,215.57,2.6]
[1736137899161,7.22531188,215.7,215.67,2.3191]
[1736137900359,7.22531188,215.7,215.63,2.6]
[1736137900562,7.22531188,215.7,215.66,2.3192]
[1736137901167,2.3184,215.74,215.68,2.319]
[1736137901466,7.22531188,215.69,215.68,2.319]
[1736137901866,7.22531188,215.71,215.7,2.3188]
[1736137903764,2.6,215.75,215.66,7.22531188]
[1736137903966,7.22531188,215.74,215.66,7.22531188]
[1736137905572,7.22531188,215.74,215.73,2.3185]
[1736137906466,1.5158,215.79,215.69,2.6]
[1736137906671,2.3176,215.81,215.75,2.3182]
[1736137906970,7.22531188,215.76,215.75,2.3182]
[1736137908666,7.22531188,215.77,215.73,2.3184]
[1736137908864,7.22531188,215.77,215.7,7.22531188]
[1736137909370,7.22531188,215.77,215.76,2.3182]
[1736137911169,7.22531188,215.77,215.71,2.3186]
[1736137911473,7.22531188,215.75,215.69,2.6]
[1736137912470,7.22531188,215.75,215.74,2.3184]
[1736137915168,7.22531188,215.77,215.76,2.3181]
[1736137923780,131.06628412,215.83,215.78,2.3178]
[1736137923978,128.74888412,215.83,215.78,2.6]
[1736137924177,7.22531188,215.81,215.78,2.6]
[1736137924377,7.22531188,215.81,215.8,2.3177]
[1736137926176,128.74888412,215.84,215.83,2.3174]
[1736137926377,135.974196,215.84,215.83,2.3174]
[1736137926683,7.22531188,215.84,215.83,2.3174]
[1736137927680,131.06578412,215.88,215.78,2.6]
[1736137927882,128.74888412,215.88,215.85,2.3172]
[1736137928078,128.74888412,215.88,215.78,9.82531188]
[1736137928274,128.74888412,215.88,215.78,2.6]
[1736137928473,128.74888412,215.88,215.73,4.3834]
[1736137928474,128.74888412,215.89,215.87,2.317]
[1736137928682,128.74888412,215.89,215.81,2.6]
[1736137929083,128.74888412,215.9,215.81,2.6]
[1736137929286,7.22531188,215.83,215.82,2.3175]
[1736137930079,7.22531188,215.83,215.81,2.6]
[1736137930279,7.22531188,215.83,215.81,4.9176]
[1736137930780,7.22531188,215.83,215.81,2.6]
[1736137933285,7.22531188,215.83,215.78,2.3178]
[1736137933486,7.22531188,215.8,215.79,2.6]
[1736137936989,131.06608412,215.86,215.79,2.6]
[1736137937190,7.22531188,215.82,215.79,2.6]
[1736137937690,7.22531188,215.82,215.8,2.3177]
[1736137939290,2.3172,215.85,215.8,2.3177]
[1736137939490,7.22531188,215.81,215.8,2.3177]
[1736137941584,7.22531188,215.81,215.79,4.9178]
[1736137942690,7.22531188,215.81,215.73,1.4867]
[1736137942887,7.22531188,215.76,215.75,2.6]
[1736137944193,7.22531188,215.76,215.74,4.9183]
[1736137948886,2.3179,215.79,215.74,4.9183]
[1736137949082,7.22531188,215.76,215.74,4.9183]
[1736137949595,2.3179,215.79,215.74,4.9183]
[1736137950192,7.22531188,215.77,215.74,4.9183]
[1736137950994,7.22531188,215.77,215.74,2.6]
[1736137951394,7.22531188,215.75,215.74,2.6]
[1736137952292,7.22531188,215.75,215.72,2.6]
[1736137952598,7.22531188,215.73,215.69,2.6]
[1736137953388,7.22531188,215.71,215.69,2.6]
[1736137955393,7.22531188,215.71,215.69,4.9189]
[1736137956398,7.22531188,215.71,215.69,2.3189]
[1736137958499,7.22531188,215.71,215.68,2.3189]
[1736137959801,7.22531188,215.71,215.67,2.6]
[1736137960101,128.74888412,215.78,215.67,2.6]
[1736137960400,7.22531188,215.74,215.73,2.3185]
[1736137960898,7.22531188,215.74,215.67,2.6]
[1736137961400,7.22531188,215.74,215.69,2.3189]
[1736137961600,7.22531188,215.74,215.67,2.6]
[1736137961799,7.22531188,215.74,215.68,7.22531188]
[1736137963400,7.22531188,215.74,215.72,2.3185]
[1736137963598,7.22531188,215.74,215.68,7.22531188]
[1736137963794,7.22531188,215.74,215.72,2.6]
[1736137964203,2.3177,215.8,215.75,2.3182]
[1736137964403,7.22531188,215.76,215.75,2.3182]
[1736137965901,128.74888412,215.82,215.72,9.82531188]
[1736137966097,7.22531188,215.79,215.72,9.82531188]
[1736137967502,2.3174,215.83,215.77,2.3179]
[1736137967694,7.22531188,215.8,215.72,9.82531188]
[1736137967900,7.22531188,215.8,215.74,7.22531188]
[1736137968501,7.22531188,215.78,215.72,9.82531188]
[1736137969406,7.22531188,215.78,215.72,2.6]
[1736137971006,7.22531188,215.78,215.75,2.3183]
[1736137977611,7.22531188,215.78,215.76,2.3181]
[1736137980414,128.74888412,215.82,215.72,9.82531188]
[1736137980716,7.22531188,215.8,215.79,2.3178]
[1736137982216,7.22531188,215.82,215.77,2.6]
[1736137982620,7.22531188,215.8,215.78,2.3179]
[1736137983519,7.22531188,215.8,215.77,2.6]
[1736137983818,7.22531188,215.78,215.7,2.9756]
[1736137984020,7.22531188,215.74,215.71,2.6]
[1736137984717,7.22531188,215.74,215.72,2.3186]
[1736137984918,7.22531188,215.74,215.71,2.6]
[1736137986115,7.22531188,215.72,215.65,7.22531188]
[1736137986323,7.22531188,215.72,215.66,2.6]
[1736137986514,7.22531188,215.72,215.67,2.6]
[1736137987412,128.74888412,215.77,215.62,1.5207]
[1736137987611,7.22531188,215.69,215.63,9.82531188]
[1736137987913,7.22531188,215.71,215.63,9.82531188]
[1736137988119,7.22531188,215.71,215.69,2.3189]
[1736137989519,7.22531188,215.71,215.7,2.3188]
[1736137992625,7.22531188,215.71,215.69,2.3189]
[1736137992817,7.22531188,215.71,215.68,2.6]
[1736137993323,7.22531188,215.71,215.7,2.3188]
[1736137994321,7.22531188,215.71,215.69,2.3189]
[1736137994520,7.22531188,215.71,215.68,2.6]
[1736137994721,7.22531188,215.69,215.68,2.6]
[1736137996424,7.22531188,215.69,215.68,4.919]
[1736137999724,7.22531188,215.69,215.68,2.6]
[1736138001224,7.22531188,215.69,215.67,2.3191]
[1736138001527,7.22531188,215.69,215.64,4.9194]
[1736138001723,7.22531188,215.65,215.51,2.9636]
[1736138002026,7.22531188,215.65,215.58,9.82531188]
[1736138002631,7.22531188,215.65,215.59,2.6]
[1736138003130,7.22531188,215.65,215.6,2.3198]
[1736138003329,7.22531188,215.63,215.61,2.6]
[1736138003729,7.22531188,215.63,215.61,4.9198]
[1736138005528,7.22531188,215.63,215.62,2.3197]
[1736138007839,2.3188,215.7,215.65,2.3193]
[1736138008030,7.22531188,215.66,215.61,2.6]
[1736138008225,7.22531188,215.64,215.61,2.6]
[1736138009534,7.22531188,215.64,215.63,2.3195]
[1736138012337,7.22531188,215.64,215.62,2.3196]
[1736138012636,7.22531188,215.63,215.62,2.3196]
[1736138023648,131.06788412,215.68,215.62,2.3196]
[1736138023848,7.22531188,215.63,215.62,2.3196]
[1736138024950,7.22531188,215.63,215.58,2.6]
[1736138025150,7.22531188,215.6,215.58,2.6]
[1736138025550,7.22531188,215.6,215.59,2.32]
[1736138035250,7.22531188,215.6,215.52,1.4886]
[1736138035457,7.22531188,215.57,215.53,2.6]
[1736138036554,7.22531188,215.57,215.56,2.3203]
[1736138042567,128.74888412,215.63,215.54,9.82531188]
[1736138042768,7.22531188,215.6,215.54,9.82531188]
[1736138043062,128.74888412,215.63,215.59,2.32]
[1736138043264,7.22531188,215.62,215.56,7.22531188]
[1736138044567,7.22531188,215.62,215.61,2.3198]
[1736138049372,128.74888412,215.66,215.61,2.3198]
[1736138049569,135.974196,215.65,215.64,2.3194]
[1736138050269,7.22531188,215.65,215.64,2.3194]
[1736138058181,7.22531188,215.65,215.56,7.22531188]
[1736138058377,128.74888412,215.68,215.61,2.3197]
[1736138058378,7.22531188,215.62,215.61,2.3197]
[1736138064484,153.37702798,215.67,215.6,2.6]
[1736138064485,128.74888412,215.67,215.6,2.6]
[1736138064686,128.74888412,215.67,215.62,2.3197]
[1736138065676,153.37702798,215.67,215.62,2.3197]
[1736138067282,7.22531188,215.63,215.62,2.3197]
[1736138069783,7.22531188,215.63,215.6,4.9198]
[1736138071892,7.22531188,215.61,215.57,2.3201]
[1736138072094,7.22531188,215.58,215.57,2.6]
[1736138073387,7.22531188,215.58,215.57,4.9202]
[1736138073788,7.22531188,215.58,215.57,2.3202]
[1736138074096,7.22531188,215.58,215.55,2.6]
[1736138074295,7.22531188,215.56,215.55,2.6]
[1736138075293,7.22531188,215.56,215.55,4.9203]
[1736138080493,128.74888412,215.63,215.58,2.32]
[1736138080792,130.26088412,215.64,215.58,2.32]
[1736138081094,7.22531188,215.59,215.58,2.3201]
[1736138085602,7.22531188,215.59,215.55,2.6]
[1736138085798,7.22531188,215.56,215.55,4.9204]
[1736138085999,7.22531188,215.58,215.55,2.6]
[1736138087001,7.22531188,215.58,215.57,2.3202]
[1736138090902,7.22531188,215.59,215.57,2.3202]
[1736138091706,7.22531188,215.59,215.56,2.6]
[1736138092005,7.22531188,215.59,215.58,2.3201]
[1736138093105,7.22531188,215.61,215.56,2.6]
[1736138093405,7.22531188,215.61,215.6,2.3199]
[1736138095215,7.22531188,215.61,215.59,2.32]
[1736138095405,7.22531188,215.6,215.59,2.32]
[1736138101212,131.06828412,215.65,215.56,2.6]
[1736138101213,7.22531188,215.63,215.56,9.82531188]
[1736138101609,128.74888412,215.65,215.56,9.82531188]
[1736138101913,7.22531188,215.62,215.56,9.82531188]
[1736138103410,7.22531188,215.62,215.6,2.3198]
[1736138105109,128.74888412,215.65,215.6,2.3198]
[1736138105306,128.74888412,215.65,215.61,2.3197]
[1736138105506,7.22531188,215.62,215.61,2.3197]
[1736138106514,7.22531188,215.62,215.6,2.3199]
[1736138107714,7.22531188,215.62,215.61,2.3198]
[1736138112619,128.74888412,215.67,215.59,2.6]
[1736138112826,128.74888412,215.67,215.65,2.3192]
[1736138113019,7.22531188,215.66,215.65,2.3192]
[1736138113216,128.74888412,215.67,215.65,2.3192]
[1736138113421,7.22531188,215.66,215.65,2.3192]
[1736138114123,128.74888412,215.69,215.65,2.3192]
[1736138114322,128.74888412,215.69,215.67,2.3191]
[1736138114726,128.74888412,215.69,215.65,2.6]
[1736138115024,128.74888412,215.69,215.68,2.319]
[1736138115228,116.01088412,215.69,215.68,9.54431188]
[1736138115425,116.01088412,215.73,215.72,2.3186]
[1736138115728,116.01088412,215.73,215.72,4.9186]
[1736138116324,7.22531188,215.74,215.72,4.9186]
[1736138117023,7.22531188,215.74,215.73,2.3185]
[1736138117224,7.22531188,215.76,215.73,2.3185]
[1736138117424,7.22531188,215.76,215.72,2.6]
[1736138117425,359.95058809,215.83,215.72,2.6]
[1736138117626,7.22531188,215.78,215.72,9.82531188]
[1736138118534,7.22531188,215.78,215.75,2.3182]
[1736138118829,7.22531188,215.78,215.72,9.82531188]
[1736138119023,7.22531188,215.78,215.76,2.3181]
[1736138119224,7.22531188,215.78,215.77,2.6]
[1736138119529,2.3173,215.85,215.77,2.6]
[1736138119719,7.22531188,215.8,215.77,2.6]
[1736138120323,7.22531188,215.8,215.78,2.3179]
[1736138120833,7.22531188,215.8,215.75,2.3182]
[1736138121032,7.22531188,215.76,215.75,2.6]
[1736138121626,7.22531188,215.76,215.66,7.22531188]
[1736138121831,7.22531188,215.74,215.67,2.6]
[1736138122130,7.22531188,215.72,215.7,2.3187]
[1736138122330,7.22531188,215.72,215.68,2.6]
[1736138122532,7.22531188,215.7,215.69,2.6]
[1736138123538,160.70690561,215.83,215.69,2.6]
[1736138123830,7.22531188,215.77,215.69,9.82531188]
[1736138124026,7.22531188,215.75,215.73,2.3185]
[1736138124225,7.22531188,215.75,215.74,2.6]
[1736138126237,7.22531188,215.77,215.74,2.6]
[1736138127533,7.22531188,215.77,215.75,2.3182]
[1736138128737,7.22531188,215.77,215.75,2.6]
[1736138129236,7.22531188,215.77,215.64,2.6]
[1736138129428,7.22531188,215.66,215.64,2.6]
[1736138130035,7.22531188,215.66,215.64,4.9193]
[1736138130634,7.22531188,215.66,215.65,2.3193]
[1736138130837,7.22531188,215.68,215.65,2.3193]
[1736138131835,7.22531188,215.7,215.64,2.6]
[1736138134439,7.22531188,215.7,215.68,2.3189]
[1736138135440,7.22531188,215.7,215.64,2.6]
[1736138135643,7.22531188,215.7,215.69,2.3189]
[1736138135940,7.22531188,215.7,215.69,4.9189]
[1736138136142,7.22531188,215.72,215.69,4.9189]
[1736138138641,7.22531188,215.7,215.69,4.9189]
[1736138152854,7.22531188,215.7,215.61,1.3964]
[1736138153058,7.22531188,215.68,215.62,2.6]
[1736138153359,7.22531188,215.68,215.66,2.3191]
[1736138153656,7.22531188,215.7,215.67,2.6]
[1736138154456,7.22531188,215.72,215.67,2.6]
[1736138155558,7.22531188,215.72,215.69,2.3189]
[1736138155957,7.22531188,215.74,215.7,2.3187]
[1736138157964,7.22531188,215.72,215.67,2.6]
[1736138158260,7.22531188,215.7,215.67,2.6]
[1736138158460,7.22531188,215.7,215.68,2.3189]
[1736138163169,7.22531188,215.7,215.67,2.6]
[1736138163970,7.22531188,215.7,215.67,4.9191]
[1736138164372,7.22531188,215.7,215.67,2.6]
[1736138164573,7.22531188,215.7,215.68,2.319]
[1736138164972,7.22531188,215.72,215.68,2.319]
[1736138167877,128.30407038,215.73,215.68,2.319]
[1736138168077,7.22531188,215.72,215.71,2.3187]
[1736138170173,128.30407038,215.74,215.71,2.3187]
[1736138170373,135.52938226,215.74,215.68,7.22531188]
[1736138170973,7.22531188,215.74,215.68,7.22531188]
[1736138171878,7.22531188,215.74,215.7,2.3188]
[1736138172078,7.22531188,215.72,215.66,7.22531188]
[1736138172277,7.22531188,215.72,215.67,2.6]
[1736138172481,7.22531188,215.72,215.67,4.9191]
[1736138173785,7.22531188,215.7,215.66,2.3192]
[1736138174083,7.22531188,215.7,215.67,2.6]
[1736138175784,7.22531188,215.68,215.67,2.6]
[1736138175983,128.30407038,215.73,215.67,2.6]
[1736138176185,135.52938226,215.72,215.67,2.6]
[1736138176375,7.22531188,215.7,215.67,2.6]
[1736138179084,7.22531188,215.7,215.62,7.22531188]
[1736138179286,7.22531188,215.7,215.63,2.6]
[1736138179990,7.22531188,215.7,215.65,2.3192]
[1736138180689,7.22531188,215.68,215.66,2.3192]
[1736138182888,7.22531188,215.68,215.65,2.6]
[1736138183686,7.22531188,215.68,215.64,2.3194]
[1736138183983,7.22531188,215.68,215.64,4.9194]
[1736138186289,128.30407038,215.71,215.64,2.6]
[1736138186690,7.22531188,215.7,215.69,2.3189]
[1736138186993,135.52938226,215.72,215.64,9.82531188]
[1736138187589,7.22531188,215.72,215.64,9.82531188]
[1736138188894,7.22531188,215.72,215.68,2.3189]
[1736138189295,7.22531188,215.72,215.64,9.82531188]
[1736138190895,7.22531188,215.72,215.69,2.3189]
[1736138191396,7.22531188,215.72,215.69,4.9189]
[1736138191795,128.30407038,215.74,215.69,4.9189]
[1736138191987,128.30407038,215.74,215.71,2.3186]
[1736138192191,7.22531188,215.73,215.69,2.6]
[1736138192690,7.22531188,215.73,215.71,2.3186]
[1736138194198,7.22531188,215.73,215.7,2.3188]
[1736138194392,7.22531188,215.71,215.7,2.3188]
[1736138194792,7.22531188,215.71,215.69,2.6]
[1736138194999,7.22531188,215.71,215.69,4.9189]
[1736138195297,7.22531188,215.71,215.66,2.6]
[1736138195591,7.22531188,215.68,215.65,2.6]
[1736138195793,7.22531188,215.68,215.66,2.3192]
[1736138196196,7.22531188,215.68,215.65,2.6]
[1736138196492,7.22531188,215.69,215.67,2.3191]
[1736138199897,7.22531188,215.69,215.65,2.6]
[1736138200098,128.30407038,215.73,215.65,2.6]
[1736138200099,7.22531188,215.67,215.65,2.6]
[1736138200699,7.22531188,215.67,215.55,4.229]
[1736138200892,7.22531188,215.65,215.58,7.22531188]
[1736138201094,7.22531188,215.65,215.56,2.6]
[1736138201296,7.22531188,215.63,215.57,2.6]
[1736138202502,7.22531188,215.63,215.61,2.3198]
[1736138203202,7.22531188,215.63,215.61,4.9198]
[1736138205305,7.22531188,215.63,215.61,2.6]
[1736138205506,7.22531188,215.65,215.61,2.6]
[1736138205810,7.22531188,215.63,215.58,2.32]
[1736138206001,7.22531188,215.63,215.6,2.6]
[1736138209505,7.22531188,215.63,215.61,2.3198]
[1736138209700,7.22531188,215.63,215.6,2.6]
[1736138210407,7.22531188,215.63,215.6,2.3199]
[1736138210607,7.22531188,215.63,215.6,4.9199]
[1736138212902,7.22531188,215.63,215.56,7.22531188]
[1736138213107,9.54491188,215.63,215.56,7.22531188]
[1736138213305,9.54491188,215.63,215.57,2.6]
[1736138213511,7.22531188,215.61,215.57,2.6]
[1736138214102,7.22531188,215.61,215.57,4.9201]
[1736138215010,129.78177038,215.68,215.6,7.22531188]
[1736138215302,129.78177038,215.68,215.6,9.82531188]
[1736138215303,128.30407038,215.68,215.6,9.82531188]
[1736138215509,7.22531188,215.67,215.62,2.3196]
[1736138217409,7.22531188,215.67,215.63,2.3195]
[1736138218808,7.22531188,215.67,215.6,9.82531188]
[1736138219014,7.22531188,215.67,215.64,2.3194]
[1736138219510,7.22531188,215.67,215.65,2.3193]
[1736138220113,7.22531188,215.69,215.65,2.3193]
[1736138223911,9.54421188,215.69,215.65,2.3193]
[1736138224907,7.22531188,215.69,215.66,2.3192]
[1736138225308,7.22531188,215.71,215.65,2.6]
[1736138226105,7.22531188,215.71,215.66,2.3191]
[1736138226311,7.22531188,215.71,215.65,2.6]
[1736138226810,7.22531188,215.71,215.67,2.3191]
[1736138227115,7.22531188,215.69,215.67,2.3191]
[1736138227712,7.22531188,215.69,215.65,4.9193]
[1736138228213,7.22531188,215.67,215.65,4.9193]
[1736138228516,7.22531188,215.67,215.65,2.6]
[1736138229816,7.22531188,215.67,215.64,2.3193]
[1736138230011,7.22531188,215.67,215.64,2.6]
[1736138232117,7.22531188,215.67,215.64,4.9194]
[1736138232319,7.22531188,215.69,215.64,9.82531188]
[1736138232616,7.22531188,215.71,215.64,9.82531188]
[1736138233517,7.22531188,215.71,215.66,7.22531188]
[1736138233721,135.52938226,215.74,215.66,7.22531188]
[1736138234018,135.52938226,215.74,215.68,7.22531188]
[1736138234219,7.22531188,215.74,215.71,2.3186]
[1736138235019,3.03,215.78,215.74,2.3184]
[1736138235020,7.22531188,215.78,215.74,2.3184]
[1736138235317,7.22531188,215.78,215.74,4.9184]
[1736138235916,130.62177038,215.81,215.74,4.9184]
[1736138236115,128.30407038,215.81,215.78,2.3179]
[1736138236416,135.52938226,215.82,215.79,2.6]
[1736138236816,7.22531188,215.8,215.79,2.6]
[1736138237519,7.22531188,215.8,215.79,4.9178]
[1736138239121,2.3173,215.84,215.79,4.9178]
[1736138239321,7.22531188,215.82,215.79,4.9178]
[1736138240123,7.22531188,215.82,215.79,2.6]
[1736138241321,7.22531188,215.8,215.79,2.6]
[1736138243419,7.22531188,215.82,215.79,2.6]
[1736138244919,2.3172,215.85,215.8,2.3177]
[1736138245117,7.22531188,215.82,215.8,2.3177]
[1736138245318,7.22531188,215.82,215.79,2.6]
[1736138245722,2.3173,215.84,215.79,4.9178]
[1736138245914,7.22531188,215.81,215.79,4.9178]
[1736138246524,7.22531188,215.81,215.79,2.6]
[1736138247123,2.3174,215.83,215.79,2.6]
[1736138247318,7.22531188,215.83,215.79,2.6]
[1736138247529,7.22531188,215.84,215.79,2.6]
[1736138247722,24.15047638,215.91,215.79,2.6]
[1736138247926,7.22531188,215.85,215.79,2.6]
[1736138248825,7.22531188,215.85,215.8,2.3176]
[1736138249025,7.22531188,215.85,215.79,2.6]
[1736138249923,7.22531188,215.83,215.79,2.6]
[1736138250324,7.22531188,215.83,215.81,2.3176]
[1736138251828,7.22531188,215.83,215.64,59.4959928]
[1736138252126,7.22531188,215.75,215.68,7.22531188]
[1736138252324,7.22531188,215.75,215.69,2.6]
[1736138253023,7.22531188,215.77,215.69,2.6]
[1736138253331,7.22531188,215.77,215.73,2.3184]
[1736138253627,7.22531188,215.77,215.74,2.6]
[1736138254425,7.22531188,215.79,215.74,2.6]
[1736138254732,7.22531188,215.83,215.76,7.22531188]
[1736138255429,2.6,215.89,215.74,2.6]
[1736138255430,7.22531188,215.85,215.78,7.22531188]
[1736138255730,7.22531188,215.85,215.79,2.6]
[1736138256027,7.22531188,215.85,215.8,2.3176]
[1736138256729,7.22531188,215.83,215.8,2.3176]
[1736138260131,7.22531188,215.83,215.81,2.6]
[1736138274357,7.22531188,215.83,215.81,4.9175]
[1736138278362,7.22531188,215.83,215.81,2.62]
[1736138278558,9.54271188,215.83,215.81,2.62]
[1736138287267,7.22531188,215.83,215.77,1.5043]
[1736138287467,7.22531188,215.79,215.77,4.9379]
[1736138287764,7.22531188,215.79,215.76,2.62]
[1736138287968,2.906,215.88,215.54,77.3160751]
[1736138287969,7.22531188,215.77,215.54,77.3160751]
[1736138288169,7.22531188,215.7,215.62,7.22531188]
[1736138288370,7.22531188,215.68,215.62,7.22531188]
[1736138288559,7.22531188,215.68,215.64,2.3194]
[1736138290174,7.22531188,215.68,215.65,2.3193]
[1736138290672,7.22531188,215.7,215.65,2.3193]
[1736138291570,7.22531188,215.7,215.62,7.22531188]
[1736138291571,7.22531188,215.66,215.51,7.22531188]
[1736138291871,7.22531188,215.64,215.55,7.22531188]
[1736138292268,7.22531188,215.64,215.54,2.62]
[1736138292469,7.22531188,215.62,215.55,2.62]
[1736138293668,7.22531188,215.62,215.49,7.22531188]
[1736138293669,7.22531188,215.58,215.49,7.22531188]
[1736138293874,2.62,215.62,215.44,1.3911]
[1736138293875,7.22531188,215.56,215.44,1.3911]
[1736138294080,7.22531188,215.52,215.45,9.84531188]
[1736138294575,7.22531188,215.52,215.46,2.62]
[1736138295871,7.22531188,215.52,215.45,7.22531188]
[1736138296072,7.22531188,215.52,215.46,2.62]